fUSD/lending_fUSD_20240501
["ID","MTS","AMOUNT","RATE_DAILY","PERIOD"]
[325199715,1714575053036,-573.064479,0.00024,7]
[325199716,1714575053046,-467.60503,0.00024,7]
[325199717,1714575053056,-573.064479,0.00024,7]
[325199718,1714575053066,-151.0,0.00024,7]
[325199719,1714575053075,-599.085775,0.00024,7]
[325199720,1714575053084,-599.085775,0.00024,7]
[325199721,1714575053093,-307.237788,0.00024,7]
[325199722,1714575053102,-485.45,0.00024,7]
[325199723,1714575053111,-307.237788,0.00024,7]
[325199724,1714575053122,-485.45,0.00024,7]
[325199725,1714575053131,-267.523814,0.00024,7]
[325199726,1714575053141,-151.0,0.00024,7]
[325199727,1714575053151,-258.985858,0.00024,7]
[325199728,1714575053161,-226.701302,0.00024,7]
[325199729,1714575053170,-258.985858,0.00024,7]
[325199730,1714575053179,-151.0,0.00024,7]
[325199731,1714575053189,-294.063377,0.00024,7]
[325199732,1714575053199,-294.063377,0.00024,7]
[325199733,1714575053208,-151.0,0.00024,7]
[325199734,1714575053218,-151.0,0.00024,7]
[325199735,1714575053227,-222.652717,0.00024,7]
[325199736,1714575053236,-151.0,0.00024,7]
[325199737,1714575053362,-151.0,0.00024,7]
[325199738,1714575053371,-151.0,0.00024,7]
[325199739,1714575053381,-151.0,0.00024,7]
[325199740,1714575053390,-151.0,0.00024,7]
[325199741,1714575053400,-151.0,0.00024,7]
[325199742,1714575053410,-152.50492,0.00024,7]
[325199743,1714575053419,-152.50492,0.00024,7]
[325199744,1714575053428,-500.003855,0.00024,7]
[325199745,1714575053438,-500.003855,0.00024,7]
[325199746,1714575053447,-151.0,0.00024,7]
[325199747,1714575053456,-151.0,0.00024,7]
[325199748,1714575053465,-151.0,0.00024,7]
[325199749,1714575053474,-834.441592,0.00024,7]
[325199750,1714575053484,-151.0,0.00024,7]
[325199751,1714575053493,-834.441592,0.00024,7]
[325199752,1714575053503,-151.0,0.00024,7]
[325199753,1714575053512,-151.0,0.00024,7]
[325199754,1714575053521,-581.459563,0.00024,7]
[325199755,1714575053531,-581.459563,0.00024,7]
[325199757,1714575053540,-151.0,0.00024,7]
[325199758,1714575053549,-305.576016,0.00024,7]
[325199759,1714575053558,-151.0,0.00024,7]
[325199760,1714575053567,-305.576016,0.00024,7]
[325199761,1714575053577,-151.0,0.00024,7]
[325199762,1714575053587,-151.0,0.00024,7]
[325199763,1714575053596,-151.0,0.00024,7]
[325199764,1714575053605,-151.0,0.00024,7]
[325199765,1714575053614,-10000.0,0.00024,7]
[325199766,1714575053624,-10000.0,0.00024,7]
[325199767,1714575053634,-621.483748,0.00024,7]
[325199768,1714575053643,-10000.0,0.00024,7]
[325199769,1714575053653,-151.0,0.00024,7]
[325199770,1714575053662,-621.483748,0.00024,7]
[325199771,1714575053672,-162.918862,0.00024,7]
[325199772,1714575053681,-495.91348,0.00024,7]
[325199773,1714575053691,-162.918862,0.00024,7]
[325199774,1714575053700,-495.91348,0.00024,7]
[325199775,1714575053709,-151.751501,0.00024,7]
[325199776,1714575053719,-151.0,0.00024,7]
[325199777,1714575053728,-151.0,0.00024,7]
[325199778,1714575053738,-165.595541,0.00024,7]
[325199779,1714575053748,-165.595541,0.00024,7]
[325199780,1714575053757,-233.640538,0.00024,7]
[325199781,1714575053767,-233.640538,0.00024,7]
[325199782,1714575053777,-151.0,0.00024,7]
[325199783,1714575053787,-150.0,0.00024,4]
[325199784,1714575053797,-151.0,0.00024,7]
[325199785,1714575053807,-575.367403,0.00024,7]
[325199786,1714575053818,-575.367403,0.00024,7]
[325199787,1714575053827,-150.10647152,0.0002403,2]
[325199788,1714575053836,-150.10647152,0.00024048,2]
[325199789,1714575053846,-152.06110622,0.00024109,2]
[325199790,1714575053855,-150.10647152,0.00024157,2]
[325199791,1714575053865,-500.0,0.00024265,2]
[325199792,1714575053876,-500.0,0.00024265,2]
[325199793,1714575053887,-500.0,0.00024265,2]
[325199794,1714575053897,-500.0,0.00024265,2]
[325199795,1714575053906,-500.0,0.00024265,2]
[325199796,1714575053915,-500.0,0.00024265,2]
[325199797,1714575053926,-155.31314027,0.00024269,2]
[325199798,1714575053936,-35060.57581982,0.00024286,2]
[325199799,1714575053945,-269.09505563,0.0002431,2]
[325199800,1714575053954,-210.36911112,0.00024339,2]
[325199801,1714575053964,-151.77233387,0.00024372,2]
[325199802,1714575053974,-157.93592244,0.00024393,2]
[325199803,1714575053984,-3000.0,0.000244,2]
[325199804,1714575053993,-5000.0,0.00024463,7]
[325199805,1714575054003,-5508.32410198,0.000245,5]
[325199806,1714575054012,-150.0,0.000245,4]
[325199807,1714575054022,-167.91113912,0.0002452,2]
[325199808,1714575054031,-1054.58902169,0.00024556,2]
[325199809,1714575054040,-150.10647152,0.00024624,2]
[325199810,1714575054050,-153.79326903,0.00024632,2]
[325199811,1714575054060,-150.0,0.00024639,2]
[325199812,1714575054070,-150.0,0.00024639,2]
[325199813,1714575054079,-150.0,0.00024639,2]
[325199814,1714575054088,-150.0,0.00024639,2]
[325199815,1714575054098,-150.0,0.00024639,2]
[325199816,1714575054107,-150.0,0.00024639,2]
[325199817,1714575054117,-150.0,0.00024639,2]
[325199818,1714575054127,-150.0,0.00024639,2]
[325199819,1714575054137,-150.0,0.00024639,2]
[325199820,1714575054147,-269.09505563,0.0002464,2]
[325199821,1714575054156,-476.30196433,0.00024657,2]
[325199822,1714575054165,-3226.3,0.00024657,2]
[325199823,1714575054176,-242.19420022,0.00024658,2]
[325199824,1714575054187,-377.47,0.00024658,2]
[325199825,1714575054197,-8427.12,0.00024658,4]
[325199826,1714575054206,-2946.98,0.00024658,2]
[325199827,1714575054216,-241.67,0.00024658,4]
[325199828,1714575054226,-152.06110622,0.00024742,2]
[325199829,1714575054235,-156.26886033,0.00024753,2]
[325199830,1714575054245,-151.77233387,0.00024753,2]
[325199831,1714575054255,-574.86781022,0.00024767,30]
[325199832,1714575054265,-1346.51,0.000248,2]
[325199833,1714575054275,-1123.45,0.000248,2]
[325199834,1714575054285,-1190.43,0.000248,2]
[325199835,1714575054295,-574.86781022,0.00024877,30]
[325199836,1714575054305,-431.57,0.00024896,2]
[325199837,1714575054314,-154.87226492,0.00024927,2]
[325199838,1714575054324,-152.12902794,0.0002493,2]
[325199839,1714575054334,-501.17802338,0.00024937,2]
[325199840,1714575054343,-269.09505563,0.00024941,2]
[325199841,1714575054353,-165.30353314,0.00024945,2]
[325199842,1714575054362,-574.86781022,0.00024986,30]
[325199843,1714575054374,-50000.0,0.00025,5]
[325199844,1714575054384,-1366.30988452,0.00025,2]
[325199845,1714575054394,-1297.5114446,0.00025,2]
[325199846,1714575054405,-6004.03174972,0.00025,2]
[325199847,1714575054415,-1085.27485242,0.00025,2]
[325199848,1714575054424,-500.0,0.00025,2]
[325199849,1714575054434,-4789.9999783,0.00025,12]
[325199850,1714575054444,-26910.48553173,0.00025,7]
[325199851,1714575054455,-4395.03703088,0.00025,2]
[325199852,1714575054465,-6898.75112296,0.00025,15]
[325199853,1714575054475,-572.67268291,0.00025,7]
[325199854,1714575054484,-1200.0,0.00025,26]
[325199855,1714575054494,-150.505773,0.00025,2]
[325199856,1714575054503,-150.0,0.00025,4]
[325199857,1714575054512,-152.577617,0.00025,2]
[325199858,1714575054521,-156.26886033,0.00025002,2]
[325199859,1714575054530,-574.86781022,0.00025068,30]
[325199860,1714575054540,-151.77233387,0.00025084,2]
[325199861,1714575054549,-2440.13,0.0002511,30]
[325199862,1714575054559,-150.10647152,0.00025111,2]
[325199863,1714575054568,-574.86781022,0.00025178,30]
[325199864,1714575054578,-1054.58902169,0.00025208,2]
[325199865,1714575054587,-173.08250668,0.00025239,2]
[325199866,1714575054596,-150.10647152,0.0002527,2]
[325199867,1714575054606,-13260.99,0.00025281,7]
[325199868,1714575054616,-13260.99,0.00025281,7]
[325199869,1714575054627,-13260.99,0.00025281,7]
[325199870,1714575054636,-13260.99,0.00025281,7]
[325199871,1714575054646,-574.86781022,0.00025288,30]
[325199872,1714575054655,-150.10647152,0.00025288,2]
[325199873,1714575054664,-4263.23673872,0.000253,120]
[325199874,1714575054674,-14888.27,0.000253,120]
[325199875,1714575054683,-71770.15955747,0.000253,2]
[325199876,1714575054692,-868.69025251,0.000253,4]
[325199877,1714575054702,-675.50970297,0.000253,2]
[325199878,1714575054711,-5095.0375315,0.000253,2]
[325199879,1714575054720,-3581.71630628,0.000253,2]
[325199880,1714575054729,-500.0,0.000253,2]
[325199881,1714575054738,-167.55025877,0.000253,2]
[325199882,1714575054747,-151.0,0.00025306,7]
[325199883,1714575054757,-151.0,0.00025306,7]
[325199884,1714575054766,-151.0,0.00025306,7]
[325199885,1714575054776,-151.0,0.00025306,7]
[325199886,1714575054785,-151.0,0.00025306,7]
[325199887,1714575054795,-151.0,0.00025306,7]
[325199888,1714575054804,-151.0,0.00025306,7]
[325199889,1714575054814,-151.0,0.00025306,7]
[325199890,1714575054823,-151.0,0.00025306,7]
[325199891,1714575054833,-151.0,0.00025306,7]
[325199892,1714575054843,-151.0,0.00025306,7]
[325199893,1714575054852,-151.0,0.00025306,7]
[325199894,1714575054861,-220.59336,0.00025306,7]
[325199895,1714575054872,-220.59336,0.00025306,7]
[325199896,1714575054887,-220.59336,0.00025306,7]
[325199897,1714575054897,-220.59336,0.00025306,7]
[325199898,1714575054907,-179.63988,0.00025306,7]
[325199899,1714575054916,-179.63988,0.00025306,7]
[325199900,1714575054926,-179.63988,0.00025306,7]
[325199901,1714575054936,-179.63988,0.00025306,7]
[325199902,1714575054945,-221.598469,0.00025306,7]
[325199903,1714575054954,-221.598469,0.00025306,7]
[325199904,1714575054964,-221.598469,0.00025306,7]
[325199905,1714575054974,-221.598469,0.00025306,7]
[325199906,1714575055099,-174.76121047,0.00025306,2]
[325199907,1714575055111,-7286.106784,0.00025306,7]
[325199908,1714575055121,-2728.417186,0.00025306,7]
[325199909,1714575055133,-1390.659019,0.00025306,7]
[325199910,1714575055143,-548.91493,0.00025339,7]
[325199911,1714575055152,-377.575489,0.00025339,7]
[325199912,1714575055161,-377.575489,0.00025339,7]
[325199913,1714575055171,-548.91493,0.00025339,7]
[325199914,1714575055180,-548.91493,0.00025339,7]
[325199915,1714575055190,-548.91493,0.00025339,7]
[325199916,1714575055199,-377.575489,0.00025339,7]
[325199917,1714575055209,-377.575489,0.00025339,7]
[325199918,1714575055218,-294.561062,0.00025339,2]
[325199919,1714575055227,-151.0,0.00025339,7]
[325199920,1714575055237,-151.0,0.00025339,7]
[325199921,1714575055247,-151.0,0.00025339,7]
[325199922,1714575055256,-151.0,0.00025339,7]
[325199923,1714575055265,-151.0,0.00025339,7]
[325199924,1714575055275,-151.0,0.00025339,7]
[325199925,1714575055285,-237.39057,0.00025339,7]
[325199926,1714575055295,-237.39057,0.00025339,7]
[325199927,1714575055305,-237.39057,0.00025339,7]
[325199928,1714575055314,-237.39057,0.00025339,7]
[325199929,1714575055323,-177.159009,0.00025339,7]
[325199930,1714575055333,-157.408408,0.00025339,7]
[325199931,1714575055343,-177.159009,0.00025339,7]
[325199932,1714575055353,-157.408408,0.00025339,7]
[325199933,1714575055363,-177.159009,0.00025339,7]
[325199934,1714575055374,-177.159009,0.00025339,7]
[325199935,1714575055383,-157.408408,0.00025339,7]
[325199936,1714575055392,-157.408408,0.00025339,7]
[325199937,1714575055402,-1458.305549,0.00025339,7]
[325199938,1714575055412,-1458.305549,0.00025339,7]
[325199939,1714575055421,-1458.305549,0.00025339,7]
[325199940,1714575055431,-1458.305549,0.00025339,7]
[325199941,1714575055441,-151.0,0.00025339,7]
[325199942,1714575055450,-232.551273,0.00025339,7]
[325199943,1714575055460,-151.0,0.00025339,7]
[325199944,1714575055469,-151.0,0.00025339,7]
[325199945,1714575055478,-158.006979,0.00025339,7]
[325199946,1714575055487,-158.006979,0.00025339,7]
[325199947,1714575055497,-158.006979,0.00025339,7]
[325199948,1714575055506,-158.006979,0.00025339,7]
[325199949,1714575055516,-151.0,0.00025339,7]
[325199950,1714575055525,-151.0,0.00025339,7]
[325199951,1714575055535,-151.0,0.00025339,7]
[325199952,1714575055544,-151.0,0.00025339,7]
[325199953,1714575055553,-467.60503,0.00025339,7]
[325199954,1714575055562,-467.60503,0.00025339,7]
[325199955,1714575055571,-573.064479,0.00025339,7]
[325199956,1714575055580,-573.064479,0.00025339,7]
[325199957,1714575055589,-467.60503,0.00025339,7]
[325199958,1714575055599,-467.60503,0.00025339,7]
[325199959,1714575055608,-573.064479,0.00025339,7]
[325199960,1714575055617,-573.064479,0.00025339,7]
[325199961,1714575055628,-190.404235,0.00025339,7]
[325199962,1714575055637,-599.085775,0.00025339,7]
[325199963,1714575055647,-599.085775,0.00025339,7]
[325199964,1714575055656,-599.085775,0.00025339,7]
[325199965,1714575055665,-599.085775,0.00025339,7]
[325199966,1714575055674,-307.237788,0.00025339,7]
[325199967,1714575055684,-307.237788,0.00025339,7]
[325199968,1714575055693,-485.45,0.00025339,7]
[325199969,1714575055703,-485.45,0.00025339,7]
[325199970,1714575055713,-485.45,0.00025339,7]
[325199971,1714575055723,-307.237788,0.00025339,7]
[325199972,1714575055733,-485.45,0.00025339,7]
[325199973,1714575055743,-307.237788,0.00025339,7]
[325199974,1714575055753,-151.0,0.00025339,7]
[325199975,1714575055762,-151.0,0.00025339,7]
[325199976,1714575055772,-258.985858,0.00025339,7]
[325199977,1714575055782,-258.985858,0.00025339,7]
[325199978,1714575055792,-258.985858,0.00025339,7]
[325199979,1714575055802,-258.985858,0.00025339,7]
[325199980,1714575055811,-151.0,0.00025339,7]
[325199981,1714575055820,-185.948844,0.00025339,7]
[325199982,1714575055831,-294.063377,0.00025339,7]
[325199983,1714575055840,-294.063377,0.00025339,7]
[325199984,1714575055854,-294.063377,0.00025339,7]
[325199985,1714575055874,-294.063377,0.00025339,7]
[325199986,1714575055892,-151.0,0.00025339,7]
[325199987,1714575055911,-151.0,0.00025339,7]
[325199988,1714575055933,-151.0,0.00025339,7]
[325199989,1714575055950,-151.0,0.00025339,7]
[325199990,1714575055969,-151.0,0.00025339,7]
[325199991,1714575055982,-151.0,0.00025339,7]
[325199992,1714575055999,-151.0,0.00025339,7]
[325199993,1714575056019,-151.0,0.00025339,7]
[325199994,1714575056035,-151.0,0.00025339,7]
[325199995,1714575056049,-151.0,0.00025339,7]
[325199996,1714575056067,-151.0,0.00025339,7]
[325199997,1714575056082,-151.0,0.00025339,7]
[325199998,1714575056096,-151.0,0.00025339,7]
[325199999,1714575056110,-151.0,0.00025339,7]
[325200000,1714575056125,-151.0,0.00025339,7]
[325200001,1714575056139,-151.0,0.00025339,7]
[325200002,1714575056154,-501.17802338,0.00025351,2]
[325200003,1714575056169,-269.09505563,0.00025397,2]
[325200004,1714575056185,-574.86781022,0.00025397,30]
[325200005,1714575056200,-152.50492,0.00025406,7]
[325200006,1714575056214,-152.50492,0.00025406,7]
[325200007,1714575056228,-152.50492,0.00025406,7]
[325200008,1714575056243,-152.50492,0.00025406,7]
[325200009,1714575056259,-500.003855,0.00025406,7]
[325200010,1714575056272,-500.003855,0.00025406,7]
[325200011,1714575056287,-500.003855,0.00025406,7]
[325200012,1714575056302,-500.003855,0.00025406,7]
[325200013,1714575056317,-151.0,0.00025406,7]
[325200014,1714575056332,-151.608576,0.00025406,7]
[325200015,1714575056350,-151.0,0.00025406,7]
[325200016,1714575056364,-151.0,0.00025406,7]
[325200017,1714575056381,-151.0,0.00025406,7]
[325200018,1714575056395,-151.0,0.00025406,7]
[325200019,1714575056409,-834.441592,0.00025406,7]
[325200020,1714575056424,-834.441592,0.00025406,7]
[325200021,1714575056439,-151.0,0.00025406,7]
[325200022,1714575056454,-166.495618,0.00025406,7]
[325200023,1714575056468,-834.441592,0.00025406,7]
[325200024,1714575056483,-834.441592,0.00025406,7]
[325200025,1714575056498,-151.0,0.00025406,7]
[325200026,1714575056513,-151.0,0.00025406,7]
[325200027,1714575056528,-151.0,0.00025406,7]
[325200028,1714575056543,-151.0,0.00025406,7]
[325200029,1714575056557,-581.459563,0.00025406,7]
[325200030,1714575056572,-581.459563,0.00025406,7]
[325200031,1714575056588,-581.459563,0.00025406,7]
[325200032,1714575056603,-581.459563,0.00025406,7]
[325200033,1714575056617,-151.0,0.00025406,7]
[325200034,1714575056633,-151.0,0.00025406,7]
[325200035,1714575056648,-305.576016,0.00025406,7]
[325200036,1714575056663,-305.576016,0.00025406,7]
[325200037,1714575056677,-202.075659,0.00025406,7]
[325200038,1714575056692,-305.576016,0.00025406,7]
[325200039,1714575056707,-305.576016,0.00025406,7]
[325200040,1714575056722,-151.0,0.00025406,7]
[325200041,1714575056737,-151.0,0.00025406,7]
[325200042,1714575056753,-214.168728,0.00025406,7]
[325200043,1714575056768,-151.0,0.00025406,7]
[325200044,1714575056783,-151.0,0.00025406,7]
[325200045,1714575056798,-151.0,0.00025406,7]
[325200046,1714575056814,-151.0,0.00025406,7]
[325200047,1714575056829,-10000.0,0.00025406,7]
[325200048,1714575056843,-10000.0,0.00025406,7]
[325200049,1714575056858,-10000.0,0.00025406,7]
[325200050,1714575056872,-10000.0,0.00025406,7]
[325200051,1714575056890,-621.483748,0.00025406,7]
[325200052,1714575056905,-621.483748,0.00025406,7]
[325200053,1714575056919,-10000.0,0.00025406,7]
[325200054,1714575056935,-6966.844112,0.00025406,7]
[325200055,1714575056950,-265.297649,0.00025406,7]
[325200056,1714575056965,-621.483748,0.00025406,7]
[325200057,1714575056980,-621.483748,0.00025406,7]
[325200058,1714575056994,-162.918862,0.00025406,7]
[325200059,1714575057008,-162.918862,0.00025406,7]
[325200060,1714575057023,-495.91348,0.00025406,7]
[325200061,1714575057037,-495.91348,0.00025406,7]
[325200062,1714575057241,-162.918862,0.00025406,7]
[325200063,1714575057250,-162.918862,0.00025406,7]
[325200064,1714575057260,-495.91348,0.00025406,7]
[325200065,1714575057269,-495.91348,0.00025406,7]
[325200066,1714575057278,-151.0,0.00025406,7]
[325200067,1714575057288,-151.0,0.00025406,7]
[325200068,1714575057297,-151.0,0.00025406,7]
[325200069,1714575057306,-153.792917,0.00025406,7]
[325200070,1714575057315,-165.595541,0.00025406,7]
[325200071,1714575057325,-165.595541,0.00025406,7]
[325200072,1714575057334,-165.595541,0.00025406,7]
[325200073,1714575057344,-165.595541,0.00025406,7]
[325200074,1714575057353,-233.640538,0.00025406,7]
[325200075,1714575057362,-233.640538,0.00025406,7]
[325200076,1714575057371,-233.640538,0.00025406,7]
[325200077,1714575057382,-233.640538,0.00025406,7]
[325200078,1714575057392,-151.0,0.00025406,7]
[325200079,1714575057401,-151.0,0.00025406,7]
[325200080,1714575057410,-151.0,0.00025406,7]
[325200081,1714575057419,-151.0,0.00025406,7]
[325200082,1714575057429,-575.367403,0.00025406,7]
[325200083,1714575057441,-575.367403,0.00025406,7]
[325200084,1714575057452,-575.367403,0.00025406,7]
[325200085,1714575057462,-575.367403,0.00025406,7]
[325200086,1714575057471,-1243.23,0.00025406,8]
[325200087,1714575057481,-150.0,0.00025406,2]
[325200088,1714575057492,-1701410.91561549,0.00025406,7]
[325200089,1714575057502,-157049.21334021,0.00025406,7]
[325200090,1714575057511,-55011.5948958,0.00025406,7]
[325200091,1714575057520,-167082.97076596,0.00025406,7]
[325200092,1714575057529,-150.0,0.00025406,2]
[325200093,1714575057539,-200.0,0.00025406,2]
[325200094,1714575057548,-35002.03047413,0.00025406,7]
[325200095,1714575057557,-8056.0,0.00025406,20]
[325200096,1714575057566,-400000.0,0.00025406,7]
[325200097,1714575057575,-150.0,0.00025406,3]
[325200098,1714575057584,-617.36765616,0.00025406,2]
[325200099,1714575057593,-378.33989169,0.00025406,120]
[325200100,1714575057602,-967.0,0.00025406,30]
[325200101,1714575057611,-804.0,0.00025406,30]
[325200102,1714575057620,-186.50513709,0.00025406,60]
[325200103,1714575057633,-157.25836036,0.00025406,120]
[325200104,1714575057642,-684.0,0.00025406,30]
[325200105,1714575057652,-188.0,0.00025406,30]
[325200106,1714575057661,-188.0,0.00025406,30]
[325200107,1714575057670,-188.0,0.00025406,30]
[325200108,1714575057680,-180.29089719,0.00025406,30]
[325200109,1714575057689,-1064.40394029,0.00025406,30]
[325200110,1714575057698,-630.47241044,0.00025406,30]
[325200111,1714575057707,-2398.07240192,0.00025406,120]
[325200112,1714575057716,-877.10029434,0.00025406,30]
[325200113,1714575057725,-3050.90788721,0.00025406,120]
[325200114,1714575057735,-251.73303984,0.00025406,120]
[325200115,1714575057744,-604.35626203,0.00025406,60]
[325200116,1714575057754,-70224.90059693,0.00025406,2]
[325200117,1714575057763,-1083.0,0.00025406,30]
[325200118,1714575057774,-294.24086433,0.00025406,120]
[325200119,1714575057783,-1866.07,0.00025406,30]
[325200120,1714575057793,-5000.00000207,0.00025406,7]
[325200121,1714575057803,-193.9193088,0.00025406,2]
[325200122,1714575057813,-178.61227523,0.00025406,30]
[325200123,1714575057822,-40939.0,0.00025406,4]
[325200124,1714575057832,-2968.0,0.00025406,4]
[325200125,1714575057840,-155.1537093,0.00025406,2]
[325200126,1714575057848,-643.985317,0.00025406,30]
[325200127,1714575057857,-291.611926,0.00025406,2]
[325200128,1714575057866,-150.0,0.00025406,2]
[325200129,1714575057876,-150.0,0.00025406,2]
[325200130,1714575057886,-150.0,0.00025406,2]
[325200131,1714575057898,-150.0,0.00025406,2]
[325200132,1714575057907,-150.0,0.00025406,2]
[325200133,1714575057916,-150.0,0.00025406,2]
[325200134,1714575057926,-150.0,0.00025406,2]
[325200135,1714575057934,-150.0,0.00025406,2]
[325200136,1714575057943,-150.0,0.00025406,2]
[325200137,1714575057952,-150.0,0.00025406,2]
[325200138,1714575057962,-3527.99028555,0.00025408,3]
[325200139,1714575057973,-157.93592249,0.00025424,2]
[325200140,1714575057984,-151.77233387,0.00025444,2]
[325200141,1714575057993,-400.0,0.0002547,2]
[325200142,1714575058002,-150.0,0.000255,4]
[325200143,1714575058011,-574.86781022,0.00025507,30]
[325200144,1714575058021,-13260.99,0.00025555,7]
[325200145,1714575058030,-13260.99,0.00025555,7]
[325200146,1714575058039,-3241.987,0.000256,2]
[325200147,1714575058048,-911.32,0.00025602,2]
[325200148,1714575058057,-911.32,0.00025602,2]
[325200149,1714575058066,-1822.28,0.00025602,2]
[325200150,1714575058075,-665.76,0.00025602,2]
[325200151,1714575058084,-574.86781022,0.00025616,30]
[325200152,1714575058092,-155.31314027,0.00025665,2]
[325200153,1714575058101,-574.86781022,0.00025699,30]
[325200154,1714575058110,-352.42102634,0.00025715,2]
[325200155,1714575058118,-1054.58902169,0.00025789,2]
[325200156,1714575058131,-269.09505563,0.00025798,2]
[325200157,1714575058140,-574.86781022,0.00025808,30]
[325200158,1714575058149,-13260.99,0.00025828,7]
[325200159,1714575058158,-13260.99,0.00025828,7]
[325200160,1714575058167,-501.17802338,0.00025845,2]
[325200161,1714575058176,-574.86781022,0.00025918,30]
[325200162,1714575058186,-152.06110622,0.00025982,2]
[325200163,1714575058195,-50000.0,0.00026,6]
[325200164,1714575058205,-1200.0,0.00026,27]
[325200165,1714575058214,-1346.51,0.00026,2]
[325200166,1714575058223,-1123.45,0.00026,2]
[325200167,1714575058233,-1190.43,0.00026,2]
[325200168,1714575058243,-1036.0,0.00026,2]
[325200169,1714575058252,-150.0,0.00026,4]
[325200170,1714575058261,-3226.3,0.00026027,4]
[325200171,1714575058271,-574.86781022,0.00026027,30]
[325200172,1714575058280,-501.17802338,0.00026077,2]
[325200173,1714575058289,-13260.99,0.00026101,7]
[325200174,1714575058298,-13260.99,0.00026101,7]
[325200175,1714575058308,-156.26886033,0.00026104,2]
[325200176,1714575058318,-574.86781022,0.00026137,30]
[325200177,1714575058327,-152.06110622,0.00026173,2]
[325200178,1714575058336,-269.09505563,0.00026176,2]
[325200179,1714575058354,-150.10647152,0.00026203,2]
[325200180,1714575058367,-574.86781022,0.00026219,30]
[325200181,1714575058381,-501.17802338,0.0002622,2]
[325200182,1714575058390,-711.09,0.00026287,2]
[325200183,1714575058400,-2277.96550019,0.00026374,7]
[325200184,1714575058994,-10983.02449981,0.00026374,7]
[325200185,1714575059004,-13260.99,0.00026374,7]
[325200186,1714575059013,-269.09505563,0.00026435,2]
[325200187,1714575059023,-155.70643541,0.00026468,2]
[325200188,1714575059033,-150.0,0.000265,5]
[325200189,1714575059042,-501.17802338,0.00026517,2]
[325200190,1714575059051,-151.0,0.00026522,2]
[325200191,1714575059060,-250.49088,0.00026522,2]
[325200192,1714575059069,-13260.99,0.00026648,7]
[325200193,1714575059078,-13260.99,0.00026648,7]
[325200194,1714575059088,-152.83783517,0.00026682,2]
[325200195,1714575059099,-269.09505563,0.00026731,2]
[325200196,1714575059109,-152.06110622,0.00026734,2]
[325200197,1714575059120,-269.09505563,0.00026762,2]
[325200198,1714575059132,-269.09505563,0.00026766,2]
[325200199,1714575059141,-150.10647152,0.00026826,2]
[325200200,1714575059150,-1054.58902169,0.00026834,2]
[325200201,1714575059159,-156.26886033,0.00026872,2]
[325200202,1714575059169,-269.09505563,0.00026875,2]
[325200203,1714575059178,-1321.13645575,0.000269,2]
[325200204,1714575059187,-1375.34953282,0.0002691,2]
[325200205,1714575059196,-13260.99,0.00026921,7]
[325200206,1714575059205,-13260.99,0.00026921,7]
[325200207,1714575059215,-150.10647152,0.00026952,2]
[325200208,1714575059224,-1054.58902169,0.00026966,2]
[325200209,1714575059237,-302.0,0.00026968,4]
[325200210,1714575059246,-50000.0,0.00027,7]
[325200211,1714575059256,-155.0,0.00027,4]
[325200212,1714575059266,-6009.66735921,0.00027,2]
[325200213,1714575059274,-169.72913599,0.00027,2]
[325200214,1714575059283,-1200.0,0.00027,28]
[325200215,1714575059293,-162.53961286,0.00027,120]